Cogmind - Beta 17 @@@ ROGUE MODE // 2026.07.14 @ 19:20:42 Player: Blaf Result: Destroyed by Y-54 Guardian with Flak Gun Performance ------------- Evolutions (3) 1500 Regions Visited (4) 800 Robots Destroyed (34) 170 Value Destroyed (906) 906 Prototype IDs (1) 20 Alien Tech Used (0) 0 Bonus (0) 0 TOTAL SCORE: 3396 Bonus ------- None Cogmind --------- Core Integrity 0/700 Matter 13/300 Energy 100/100 System Corruption 0% Temperature Cool (12) Movement Core (200) Ox3 Location -7/Factory Parts ------- > --- POWER (1) -------- (None) > --- PROPULSION (4) --- (None) > --- UTILITY (4) ------ Medium Storage Unit Visual Processing Unit Signal Interpreter > --- WEAPON (4) ------- (None) > --- INVENTORY (10) --- Heavy Ion Engine Wheel Medium Storage Unit Visual Processing Unit Matter Filter Peak State ------------ > --- POWER ------------ Cooled Ion Engine > --- PROPULSION ------- Compact Wheel Compact Wheel Compact Wheel Compact Wheel > --- UTILITY ---------- Medium Storage Unit Visual Processing Unit Sensor Array Signal Interpreter > --- WEAPON ----------- Advanced Assault Cannon Advanced Assault Cannon Advanced Assault Cannon Missile Launcher > --- INVENTORY -------- Heavy Ion Engine Wheel Medium Storage Unit Visual Processing Unit Matter Filter Advanced Assault Cannon Missile Launcher Missile Launcher [Rating: 29] Favorites ----------- Power Ion Engine Engine Ion Engine Propulsion Compact Wheel Wheel Compact Wheel Utility Medium Storage Unit Device Sensor Array Storage Medium Storage Unit Processor Signal Interpreter Weapon Advanced Assault Cannon Energy Gun Medium Laser Energy Cannon Heavy Particle Cannon Ballistic Gun Light Assault Rifle Ballistic Cannon Advanced Assault Cannon Launcher Missile Launcher Build | -11 -10 -9 -8 -7 ------- Run | Yrd Mat Mat Mat Fac Slots Evolved 6 | . . 2 2 2 Power . | . . . . . Propulsion 2 | . . 1 . 1 Utility 2 | . . 1 1 . Weapon 2 | . . . 1 1 Parts Attached 29 | 6 4 9 5 5 Power 3 | 1 1 . 1 . Engine 3 | 1 1 . 1 . Core . | . . . . . Reactor . | . . . . . Propulsion 5 | 2 . 2 . 1 Treads . | . . . . . Leg . | . . . . . Wheel 5 | 2 . 2 . 1 Hover . | . . . . . Flight . | . . . . . Utility 6 | 1 2 2 1 . Device 1 | . . 1 . . Storage 2 | 1 1 . . . Processor 3 | . 1 1 1 . Hackware . | . . . . . Protection . | . . . . . Artifact . | . . . . . Weapon 15 | 2 1 5 3 4 Energy Gun 1 | 1 . . . . Energy Cannon 2 | . . 1 1 . Ballistic Gun 3 | 1 . 2 . . Ballistic Cannon 4 | . . . 2 2 Launcher 5 | . 1 2 . 2 Special Weapon . | . . . . . Impact Weapon . | . . . . . Slashing Weapon . | . . . . . Piercing Weapon . | . . . . . Special Melee Weapon . | . . . . . Unidentified Prototypes 1 | . . . 1 . Parts Lost 14 | . . 1 . 13 Power 1 | . . . . 1 Propulsion 4 | . . . . 4 Utility 1 | . . . . 1 Weapon 8 | . . 1 . 7 Highest Loss Streak 13 | . . 1 . 13 To Critical Strikes . | . . . . . Average Backups 7 | . 5 8 8 7 Power 1 | . 1 1 1 1 Propulsion 1 | . . . 2 1 Utility 2 | . 2 2 2 3 Weapon 2 | . 1 3 3 2 Tool/Special . | . . . . . Unused Backups 11 | . . 5 2 4 Power 2 | . . . 1 1 Propulsion 2 | . . 2 . . Utility 3 | . . . . 3 Weapon 4 | . . 3 1 . Tool/Special . | . . . . . Average Slot Usage (%) 95 | . 95 97 98 84 Engine 10 | . 14 11 9 5 Wheel 28 | . 28 32 27 22 Device 7 | . . 10 9 5 Storage 10 | . 14 11 9 7 Processor 13 | . 11 10 17 15 Energy Cannon 5 | . . 4 10 . Ballistic Gun 4 | . 14 5 . . Ballistic Cannon 4 | . . . 6 19 Launcher 9 | . 10 10 8 5 Peak Build Rating 29 | 6 9 15 24 29 Average Rating 15 | 3 7 11 21 24 On Entrance 10 | . 6 9 15 24 Avg Prop Armor Cover (%) . | . . . . . Naked Turns . | . . . . . Heaviest Build 43 | 11 19 28 37 43 Greatest Support 64 | 32 32 48 48 64 Greatest Overweight (x) 5 | . . . . 5 Average Overweight (x) . | . . . . . Largest Inventory Capacity 10 | 8 10 10 10 10 Average Capacity 9 | 7 9 10 10 10 Most Carried 10 | 1 9 10 10 9 Average Carried 7 | . 5 8 8 7 Final Capacity 10 | 8 10 10 10 10 Final Carried 10 | 1 9 10 10 5 Class Distribution -------------------- 59% | Mutant 40% | Skirmisher Dominant Class ---------------- Mutant | -10/Materials Mutant | -9/Materials Skirmisher | -8/Materials Skirmisher | -7/Factory Resources | -11 -10 -9 -8 -7 ----------- Run | Yrd Mat Mat Mat Fac Matter Collected 847 | 211 34 247 232 123 Remotely . | . . . . . Salvage Created 875 | . 68 247 388 172 Parts 50 | . 3 24 18 5 Haulers Intercepted 5 | . . 3 2 . Recyclers Shooed . | . . . . . Parts Field Recycled . | . . . . . Retrieved Matter . | . . . . . Parts Self-Destructed . | . . . . . Prevented . | . . . . . Parts Restored . | . . . . . Kills | -11 -10 -9 -8 -7 ------- Run | Yrd Mat Mat Mat Fac Combat Hostiles Destroyed 19 | . 2 7 7 3 Guns 2 | . 2 . . . Cannons 6 | . . . 3 3 AOE 11 | . . 7 4 . Classes Destroyed 10 | . 1 6 1 2 Worker 2 | . . 2 . . Builder 3 | . . 1 1 1 Hauler 5 | . . 3 2 . Recycler 1 | . . . . 1 Operator 1 | . . 1 . . Watcher 3 | . . 1 2 . Swarmer 7 | . . 7 . . Grunt 8 | . 2 . 6 . Sentry 3 | . . . 1 2 Hunter 1 | . . . . 1 Best Kill Streak 6 | . 2 5 6 3 Combat Bots Only 4 | . 2 4 3 1 Max Kills in Single Turn 4 | . 1 4 2 2 Gunslinging . | . . . . . Exploded 4 | . . 4 1 . Melee . | . . . . . Uniques/NPCs Destroyed . | . . . . . Combat | -11 -10 -9 -8 -7 -------- Run | Yrd Mat Mat Mat Fac Hostile Shots Fired 422 | . 7 10 7 398 Missed 155 | . 1 3 2 149 Hits 267 | . 6 7 5 249 Projectile 267 | . 6 7 5 249 Damage Taken 2345 | . 81 204 73 1987 Core 731 | . 12 14 . 705 Absorbed by Shields . | . . . . . Regen/Repaired (Parts) 109 | . 41 22 46 . Core Remaining (%) 97 | 100 95 96 100 . Volleys Fired 71 | . 4 28 16 23 Largest 4 | . 2 2 3 4 Hottest 186 | . 50 111 186 156 Shots Fired 134 | . 8 30 39 57 Gun 21 | . 4 17 . . Cannon 84 | . . 8 32 44 Launcher 29 | . 4 5 7 13 Special . | . . . . . Kinetic 67 | . 4 17 2 44 Thermal 38 | . . 8 30 . Explosive 29 | . 4 5 7 13 Electromagnetic . | . . . . . Robot Hit Streak 5 | . 4 4 5 5 Robot Miss Streak 5 | . . 4 5 4 Penetration Max . | . . . . . Secondary Targets . | . . . . . Shots Hit Robots 65 | . 4 15 17 29 Core Hits 57 | . 8 15 19 15 Critical Kills . | . . . . . Critical Parts Destroyed . | . . . . . Critical Strikes 1 | . . . . 1 Blast 1 | . . . . 1 Melee Attacks . | . . . . . Impact . | . . . . . Slashing . | . . . . . Piercing . | . . . . . Sneak Attacks . | . . . . . Combat Hostiles . | . . . . . Follow-up Attacks . | . . . . . Damage Inflicted 2953 | . 167 857 866 1063 Guns 120 | . 23 97 . . Cannons 1201 | . . 150 400 651 Explosions 1609 | . 144 610 466 389 Melee . | . . . . . Ramming 23 | . . . . 23 Kinetic 796 | . 23 97 25 651 Thermal 692 | . . 230 462 . Explosive 1442 | . 144 530 379 389 Electromagnetic . | . . . . . Impact . | . . . . . Slashing . | . . . . . Piercing . | . . . . . Highest Corruption 3 | . 2 3 . . Average Corruption 2 | . 2 2 . . Corruption Purged . | . . . . . Corruption Blocked . | . . . . . Effects 8 | . 1 7 . . Matter Fused 3 | . 1 2 . . Heat Flow Errors 2 | . . 2 . . Energy Discharges 1 | . . 1 . . Data Loss (minor) 1 | . . 1 . . Misfires 1 | . . 1 . . Overload Shots . | . . . . . Overflow Damage 142 | . . 113 . 29 Projectiles 13 | . . . . 13 Explosions 129 | . . 113 . 16 Melee . | . . . . . Knockbacks 1 | . . . . 1 Impact . | . . . . . Kinetic 1 | . . . . 1 Secondary . | . . . . . Self-Inflicted Damage 229 | . . 152 . 77 Shots 7 | . . 4 . 3 Rammed 10 | . . . . 10 Targets Rammed 10 | . . . . 10 Kicked . | . . . . . Crushed . | . . . . . Highest Temperature 381 | . 39 119 381 169 Average Temperature 87 | . 19 39 131 65 Received Heat Transfer 633 | . 45 . 36 552 Siege Activations . | . . . . . Martial Activations . | . . . . . Shielding Activations . | . . . . . Robots Disrupted . | . . . . . Combat Hostiles . | . . . . . Robots Corrupted . | . . . . . Combat Hostiles . | . . . . . Parts Fried . | . . . . . Impact Corruptions . | . . . . . Robots Melted . | . . . . . Combat Hostiles . | . . . . . Parts Melted . | . . . . . Heat Transferred 927 | . . 272 655 . Parts Sabotaged . | . . . . . Parts Stolen . | . . . . . Parts Stripped . | . . . . . Power Chain Reactions . | . . . . . Alert | -11 -10 -9 -8 -7 ------- Run | Yrd Mat Mat Mat Fac Maximum Alert Level 1 | . . . 1 . Low Security (%) 85 | 100 100 100 53 100 Level 1 14 | . . . 46 . Level 2 . | . . . . . Level 3 . | . . . . . Level 4 . | . . . . . Level 5 . | . . . . . High Security . | . . . . . Max Security . | . . . . . Peak Influence 261 | . 56 188 261 155 Initial 59 | . . . 56 59 Average 110 | . 11 119 178 87 Influence Increases 1032 | . 66 425 338 203 Destroy 0b10 Robot/C 380 | . 40 140 140 60 Destroy 0b10 Robot/NC 75 | . . 40 25 10 Destroy Leader 96 | . 10 28 28 30 Successful Hack 5 | . . . 5 . Disable Machine 225 | . . 135 30 60 Destroy Structure 206 | . 16 82 65 43 Partial Spotted 15 | . . . 15 . Lose Combat Pursuer 30 | . . . 30 . Influence Decreases 1020 | . 66 290 341 323 Entered New Map 152 | . . . 79 73 Time Decay 728 | . 66 280 262 120 Lost Part 140 | . . 10 . 130 Squads Dispatched 7 | . 1 . 2 4 Investigation 1 | . . . 1 . Extermination . | . . . . . Reinforcement 3 | . 1 . 1 1 Assault . | . . . . . Garrison 3 | . . . . 3 Intercept . | . . . . . Searches Triggered . | . . . . . Construction Impeded . | . . . . . Haulers Reinforced . | . . . . . Active Scanning Responses . | . . . . . Cargo Convoy Interrupts . | . . . . . Stealth | -11 -10 -9 -8 -7 --------- Run | Yrd Mat Mat Mat Fac Distress Signals 3 | . . 1 2 . Communications Jammed . | . . . . . Distress Signals . | . . . . . Times Spotted 39 | . 9 10 13 7 Peak Tracking Total 5 | . 5 4 5 2 Tactical Retreats 1 | . . . 1 . Traps | -11 -10 -9 -8 -7 ------- Run | Yrd Mat Mat Mat Fac Traps Triggered 3 | . 1 2 . . Indirectly . | . . . . . Trap Hack Attempts . | . . . . . Triggered . | . . . . . Disarmed . | . . . . . Reprogrammed . | . . . . . Reused . | . . . . . Traps Extracted . | . . . . . Installed . | . . . . . Triggered . | . . . . . Machines | -11 -10 -9 -8 -7 ---------- Run | Yrd Mat Mat Mat Fac Machines Disabled 15 | . . 9 2 4 Max in Single Turn 3 | . . 3 1 1 Machines Repaired . | . . . . . Machines Dismantled . | . . . . . Machines Sabotaged . | . . . . . Overloaded Fab Kills . | . . . . . Hacking | -11 -10 -9 -8 -7 --------- Run | Yrd Mat Mat Mat Fac Machines Accessed 6 | . 1 1 3 1 Terminals 1 | . . . 1 . Fabricators . | . . . . . Repair Stations 3 | . 1 1 1 . Recycling Units . | . . . . . Scanalyzers 1 | . . . 1 . Garrison Access 1 | . . . . 1 Total Hacks 13 | . 3 2 7 1 Successful 7 | . 2 2 3 . Failed 6 | . 1 . 4 1 Catastrophic 3 | . . . 2 1 Database Lockouts . | . . . . . Manual . | . . . . . Terminals 3 | . . . 3 . Fabricators . | . . . . . Repair Stations 7 | . 3 2 2 . Recycling Units . | . . . . . Scanalyzers 2 | . . . 2 . Garrison Access 1 | . . . . 1 Terminal Hacks . | . . . . . Fabricator Hacks . | . . . . . Repair Station Hacks 6 | . 2 2 2 . Scan Component 3 | . 1 1 1 . Repair 3 | . 1 1 1 . Recycling Unit Hacks . | . . . . . Scanalyzer 1 | . . . 1 . Retrieve Study 1 | . . . 1 . Garrison Access Hacks . | . . . . . Unauthorized Hacks . | . . . . . Terminals . | . . . . . Fabricators . | . . . . . Repair Stations . | . . . . . Recycling Units . | . . . . . Scanalyzers . | . . . . . Garrison Access . | . . . . . Data Cores Recovered 1 | . . 1 . . Used . | . . . . . Hacking Detections 5 | . 1 . 3 1 Full Trace Events 1 | . . . 1 . Feedback Events . | . . . . . Feedback Blocked . | . . . . . Robot Schematics Acquired . | . . . . . Robots Built . | . . . . . Authchips . | . . . . . Time . | . . . . . Total Robot Build Rating . | . . . . . Part Schematics Acquired . | . . . . . Parts Built . | . . . . . Authchips . | . . . . . Time . | . . . . . Total Part Build Rating . | . . . . . Part Studies Acquired . | . . . . . Parts Repaired 3 | . 1 1 1 . Time 90 | . 26 26 38 . Parts Recycled . | . . . . . Recycled Matter . | . . . . . Retrieved Matter . | . . . . . Retrieved Components . | . . . . . Parts Scanalyzed . | . . . . . Part Schematics Acquired . | . . . . . Parts Damaged . | . . . . . Bothacking | -11 -10 -9 -8 -7 ------------ Run | Yrd Mat Mat Mat Fac Used RIF Installer . | . . . . . Robots Hacked . | . . . . . Non-combat . | . . . . . Combat . | . . . . . Robot Hacks Applied . | . . . . . Relay Couplers Released . | . . . . . Fabnet Peak Effective % . | . . . . . Robots Rewired . | . . . . . Allies Hacked . | . . . . . Hacks Repelled . | . . . . . Allies | -11 -10 -9 -8 -7 -------- Run | Yrd Mat Mat Mat Fac Total Allies . | . . . . . Largest Group . | . . . . . Highest-Rated Group . | . . . . . Highest-Rated Ally . | . . . . . Total Orders . | . . . . . Ally Attacks . | . . . . . Total Damage . | . . . . . Kills . | . . . . . Allies Corrupted . | . . . . . Allies Melted . | . . . . . Intel | -11 -10 -9 -8 -7 ------- Run | Yrd Mat Mat Mat Fac Active Infowar (turns) 1748 | . 258 686 563 241 Optics 1060 | . 258 . 561 241 Sensors 1455 | . . 686 563 206 Robot Analysis Total . | . . . . . Derelict Logs Recovered . | . . . . . Drone Launches . | . . . . . Drone Recoveries . | . . . . . Exploration | -11 -10 -9 -8 -7 ------------- Run | Yrd Mat Mat Mat Fac Turns Passed 1871 | 61 319 687 563 241 Spaces Moved 1487 | 61 266 602 442 116 Core 22 | 18 . . . 4 Treads . | . . . . . Legs . | . . . . . Wheels 1465 | 43 266 602 442 112 Hover . | . . . . . Flight . | . . . . . Fastest Speed 50 | 50 100 93 100 100 Average Speed 97 | 85 100 94 100 107 Slowest Speed 300 | 100 100 100 100 300 Overloaded Moves . | . . . . . Propulsion Burnouts . | . . . . . Robots Hopped . | . . . . . Potential Cave-ins . | . . . . . Cave-ins Triggered . | . . . . . Exploration Rate (%) 24 | 4 41 37 35 3 Regions Visited 4 Branch Regions . Pre-discovered Areas . | . . . . . Known Exits Taken 2 | . . 1 1 . Unknown Exits Taken 2 | 1 1 . . . Scrap Searched . | . . . . . Spaces Dug . | . . . . . Terrain Destroyed 204 | . 16 82 65 41 Melee . | . . . . . Projectile 14 | . . 2 8 4 AOE 190 | . 16 80 57 37 Terrain Rammed . | . . . . . Walls Destroyed . | . . . . . Machines Disabled . | . . . . . Actions | -11 -10 -9 -8 -7 --------- Run | Yrd Mat Mat Mat Fac Total 1778 | 67 309 696 528 178 Wait 136 | . 26 31 55 24 Move 1483 | 60 265 601 441 116 Hop . | . . . . . Pick Up 27 | 1 8 13 5 . Fast Attach 15 | 6 2 4 3 . Attach 11 | . . 4 2 5 Detach . | . . . . . Swap 7 | . 3 3 1 . Drop 18 | . 1 12 5 . Fire 71 | . 4 28 16 23 Melee . | . . . . . Ram 10 | . . . . 10 Kick . | . . . . . Crush . | . . . . . Escape Stasis . | . . . . . Rewire . | . . . . . Trap . | . . . . . Miscellaneous . | . . . . . Route ------- -11/Scrapyard -10/Materials (discovered 2 exits: *Mat / [*Min]) -9/Materials -8/Materials -7/Factory History --------- Turn | Location | Event 4 | -11/Scrapyard | Discovered new exit (range 16) 62 | -11/Scrapyard | Entered Materials 62 | -10/Materials | Discovered new exit (range 7) 219 | -10/Materials | Discovered new exit (range 8) 304 | -10/Materials | Build established: Mutant 333 | -10/Materials | Repaired Grenade Launcher 381 | -10/Materials | Entered another Materials area 381 | -9/Materials | Evolved 2 slots: Propulsion x1, Utility x1 874 | -9/Materials | Repaired Com. Wheel 971 | -9/Materials | Discovered new exit (range 16) 1067 | -9/Materials | Identified exit to Materials 1068 | -9/Materials | Entered another Materials area 1068 | -8/Materials | Evolved 2 slots: Utility x1, Weapon x1 1356 | -8/Materials | Build established: Skirmisher 1566 | -8/Materials | Repaired Missile Launcher 1626 | -8/Materials | Discovered new exit (range 4) 1630 | -8/Materials | Identified exit to Factory 1631 | -8/Materials | Entered Factory 1631 | -7/Factory | Evolved 2 slots: Propulsion x1, Weapon x1 1841 | -7/Factory | Core integrity fell below 50% 1854 | -7/Factory | Core integrity fell below 20% 1872 | -7/Factory | Destroyed by Y-54 Guardian with Flak Gun Last Messages --------------- 01825_ Slammed into Y-54 Guardian. 01825_ Destabilizing: Core damaged (-35). 01827_ Slammed into Y-54 Guardian. 01827_ Com. Wheel destroyed. 01828_ Slammed into Y-54 Guardian. 01830_ Adv. Assault Cannon destroyed. 01834_ Slammed into Y-54 Guardian. 01834_ Adv. Assault Cannon destroyed. 01837_ Sensor Array destroyed. 01837_ Cld. Ion Engine destroyed. 01838_ Slammed into Y-54 Guardian. 01841_ Pressure Siphon disabled. 01847_ Missile Launcher destroyed. 01849_ The unstable cave ceiling collapses. 01853_ Y-54 Guardian destroyed. 01858_ Acquired 6 matter. 01864_ U-05 Engineer lays Concrete. 01869_ Slammed into Y-54 Guardian. 01869_ Adv. Assault Cannon destroyed. 01872_ Slammed into Y-54 Guardian. Map ----- +----------------------------------------------------+ | ?????????????????????????????????????????????????? | | ?????????????????????????????????????????????????? | | ?????????????????????????????????????????????????? | | #+######+#######?????????????????????????????????? | | +?????????????????????????????????? | | #?????????????????????????????????? | | +?????????????????????????????????? | | ###??????????????????????????????????? | | #????????????????????????????????????? | | #### #????????????????????????????????????? | | ##???#+##########+#########?????????????????? | | # # ??????????????????? | | # """"" # ???????????????????? | | # """"" # ????????????????????? | | # """ + ????????????????????? | | # # ????????????????????? | | # # #??????????????????????? | | # +### #??????????????????????? | | #??????????????????????? | | % #??????????????????????? | | "" !! ######?????????????????? | | "G! "" ! # #?????????????????? | | "" " u "" # #?????????????????? | | % " "" #?????????????????? | | Y #?????????????????? | | "" @ #?????????????????? | | """" """ #?????????????????? | | """" ! [!! """ #?????????????????? | | [! |#?????????????????? | | ! [! #?????????????????? | | #########+########### #####?????????????????? | | ###????? ??????????##### ##?????????????????????? | | ???????? ??????????????# #??????????????????????? | | ???????? ????????????? ??????????????????????? | | ???????? ????????????? ??????????????????????? | | ?????????"???????????? ??????????????????????? | | ?????????"???????????# ??????????????????????? | | ?????????????????????# ?????????????????????? | | ?????????????????????# # ##?????????????????????? | | ?????????????????????#### ???????????????????????? | | ????????????????????????? ???????????????????????? | | ????????????????????????? ???????????????????????? | | ????????????????????????? ???????????????????????? | | ????????????????????????? ???????????????????????? | | ?????????????????????????+???????????????????????? | | ?????????????????????????????????????????????????? | | ?????????????????????????????????????????????????? | | ?????????????????????????????????????????????????? | | ?????????????????????????????????????????????????? | | ?????????????????????????????????????????????????? | +----------------------------------------------------+ Best States ------------- Heat Dissipation 34 Energy Generation 14 Energy Capacity 280 Matter Stores 300 Matter Capacity 300 Sight Range 18 Robot Scan Range 14 Terrain Scan Density 10 Evasion (%) 41 Item Schematics ----------------- None Robot Schematics ------------------ None Fabricated ------------ Nothing Repaired ---------- Grenade Launcher | 31% | -10/Materials Com. Wheel | 26% | -9/Materials Missile Launcher | 38% | -8/Materials Studied --------- None Alien Tech Used ----------------- None Achievements -------------- None Challenges ------------ None Game ------ Seed RegenerativeMicroEdition Manual? 0 Play Time 00:33:12 Cumulative 17.4 hours Start 2026.07.14 @ 18:49:36 End 2026.07.14 @ 19:20:42 Sessions 1 Manual Loads 0 Difficulty Rogue Special Mode None Game No. 31 Rogue 31 Adventurer 0 Explorer 0 Win Type - Total 0 Types 0/0/0/0/0/0/0/0/0/0 Lore% 7 Gallery% 15 Achievement% 13 Wizard Run 0 Options --------- Layout 1 ASCII 0 Keyboard 0 Movement Arrows Keybinds 0 Fullscreen 1 Font 24/Smallcaps Map View 50x35 Zoom Use 0% Tactical HUD 1 Map Filters NONE Filters NONE Steam 1 RUN: ab01076c-d243-4cdf-97ec-2bb9fee6fff3